[Event "36th Indian-ch U13 Open 2023"]
[Site "Secunderabad"]
[Date "2023.12.10"]
[Round "11.7"]
[White "Madhesh Kumar S"]
[Black "Madhvendra Pratap Sharma"]
[Result "1/2-1/2"]
[ECO "C00"]
[WhiteElo "1580"]
[BlackElo "1803"]
[Annotator "NA RC"]
[PlyCount "159"]
[EventDate "2023.12.04"]
[EventType "swiss"]
[EventCountry "IND"]
[SourceTitle "playchess.com"]
[Source "ChessBase"]
[SourceQuality "1"]
[TimeControl "5400+30"]

1. e4 {[%emt 0:00:04]} e6 {[%emt 0:00:06]} 2. Nf3 {[%emt 0:00:12]} d5 {[%emt 0:00:05]} 3. e5 {[%emt 0:00:06]} c5 {[%emt 0:00:03]} 4. b4 {[%emt 0:00:07]} cxb4 {[%emt 0:00:34]} 5. d4 {[%emt 0:00:22]} Bd7 {[%emt 0:00:06]} 6. a3 {[%emt 0:00:14]} Qa5 {[%emt 0:00:38]} 7. Bd2 {[%emt 0:03:08]} a6 {[%emt 0:01:48]} 8. Bd3 {[%emt 0:03:08]} Bb5 {[%emt 0:00:42]} 9. O-O {[%emt 0:04:37]} Nc6 {[%emt 0:04:28]} 10. Qc1 {[%emt 0:05:13]} Bxd3 {[%emt 0:07:49]} 11. cxd3 {[%emt 0:00:08]} Rb8 {[%emt 0:27:28]} 12. Qb2 {[%emt 0:04:13]} bxa3 {[%emt 0:01:48]} 13. Nxa3 {[%emt 0:00:10]} Qc7 {[%emt 0:04:41]} 14. Rfc1 {[%emt 0:05:22]} Nh6 {[%emt 0:05:13]} 15. Nc2 {[%emt 0:01:56]} Be7 {[%emt 0:01:16]} 16. Qb1 {[%emt 0:08:51]} Qd7 {[%emt 0:09:20]} 17. Nb4 {[%emt 0:07:05]} Nxb4 {[%emt 0:01:48]} 18. Bxb4 {[%emt 0:01:22]} O-O {[%emt 0:00:24]} 19. Bxe7 {[%emt 0:04:14]} Qxe7 {[%emt 0:00:31]} 20. Qb6 {[%emt 0:01:27]} Rfc8 {[%emt 0:00:56]} 21. Rc5 {[%emt 0:03:00]} Qd8 {[%emt 0:01:28]} 22. Rb1 {[%emt 0:04:33]} Nf5 {[%emt 0:03:57]} 23. g4 {[%emt 0:13:22]} Ne7 {[%emt 0:00:59]} 24. Qxd8+ {[%emt 0:00:17]} Rxd8 {[%emt 0:00:01]} 25. Rc7 {[%emt 0:00:10]} Kf8 {[%emt 0:01:44]} 26. Rbxb7 {[%emt 0:00:09]} Rxb7 {[%emt 0:00:04]} 27. Rxb7 {[%emt 0:00:07]} Ra8 {[%emt 0:00:04]} 28. Kf1 {[%emt 0:02:01]} a5 {[%emt 0:26:29]} 29. Ke1 {[%emt 0:03:29]} a4 {[%emt 0:00:00]} 30. Kd2 {[%emt 0:01:56]} a3 {[%emt 0:00:00]} 31. Rb1 {[%emt 0:00:08]} a2 {[%emt 0:00:00]} 32. Ra1 {[%emt 0:00:06]} Nc6 {[%emt 0:00:00]} 33. Kc2 {[%emt 0:02:25]} Ra3 {[%emt 0:00:00]} 34. Ne1 {[%emt 0:01:41]} Nb4+ {[%emt 0:00:00]} 35. Kb2 {[%emt 0:05:28]} Ra8 {[%emt 0:00:00]} 36. Kc3 {[%emt 0:00:55]} Rb8 {[%emt 0:00:00]} 37. f4 {[%emt 0:01:49]} h6 {[%emt 0:00:00]} 38. h3 {[%emt 0:01:10]} g6 {[%emt 0:00:00]} 39. Nf3 {[%emt 0:04:19]} Ke7 {[%emt 0:00:00]} 40. Ng1 {[%emt 0:01:21]} Nxd3 {[%emt 0:00:00]} 41. Kxd3 {[%emt 0:00:05]} Rb1 {[%emt 0:00:00]} 42. Rxa2 {[%emt 0:00:05]} Rxg1 {[%emt 0:00:00]} 43. Rh2 {[%emt 0:07:01]} Rg3+ {[%emt 0:00:00]} 44. Ke2 {[%emt 0:00:07]} Kd7 {[%emt 0:00:00]} 45. Rh1 {[%emt 0:00:46]} Ke7 {[%emt 0:00:00]} 46. Rh2 {[%emt 0:03:48]} Kf8 {[%emt 0:00:00]} 47. Rh1 {[%emt 0:01:04]} Kg7 {[%emt 0:00:00]} 48. Rh2 {[%emt 0:00:08]} h5 {[%emt 0:00:00]} 49. g5 {[%emt 0:00:57]} h4 {[%emt 0:00:00]} 50. Rh1 {[%emt 0:00:11]} Kf8 {[%emt 0:00:00]} 51. Rh2 {[%emt 0:00:32]} Ke7 {[%emt 0:00:00]} 52. Rh1 {[%emt 0:00:48]} Rb3 {[%emt 0:00:00]} 53. Kd2 {[%emt 0:00:32]} Kd7 {[%emt 0:00:47]} 54. Kc2 {[%emt 0:00:06]} Rf3 {[%emt 0:00:53]} 55. Kd2 {[%emt 0:00:04]} Kc6 {[%emt 0:01:40]} 56. Ke2 {[%emt 0:00:38]} Rg3 {[%emt 0:10:40]} 57. Rc1+ {[%emt 0:00:52]} Kd7 {[%emt 0:00:00]} 58. Rh1 {[%emt 0:00:08]} Ke7 {[%emt 0:00:00]} 59. Kd2 {[%emt 0:00:10]} Ke8 {[%emt 0:00:00]} 60. Ke2 {[%emt 0:00:09]} Kd7 {[%emt 0:00:00]} 61. Kd2 {[%emt 0:00:50]} Kc6 {[%emt 0:00:00]} 62. Rc1+ {[%emt 0:00:07]} Kb5 {[%emt 0:00:00]} 63. Rc7 {[%emt 0:00:07]} Rxh3 {[%emt 0:00:00]} 64. Rxf7 {[%emt 0:00:04]} Kc4 {[%emt 0:00:00]} 65. Ke2 {[%emt 0:02:37]} Kxd4 {[%emt 0:00:00]} 66. Kf2 {[%emt 0:00:35]} Ke4 {[%emt 0:00:00]} 67. Rf6 {[%emt 0:00:16]} Rf3+ {[%emt 0:00:21]} 68. Ke2 {[%emt 0:00:10]} Rxf4 {[%emt 0:00:58]} 69. Rxe6 {[%emt 0:00:07]} h3 {[%emt 0:00:35]} 70. Rxg6 {[%emt 0:00:55]} Rh4 {[%emt 0:00:34]} 71. e6 {[%emt 0:00:07]} Kf5 {[%emt 0:03:12]} 72. Rh6 {[%emt 0:00:09]} Re4+ {[%emt 0:00:46]} 73. Kd3 {[%emt 0:00:06]} Kxg5 {[%emt 0:01:23]} 74. Rxh3 {[%emt 0:00:06]} Rxe6 {[%emt 0:00:03]} 75. Kd4 {[%emt 0:00:10]} Rd6 {[%emt 0:00:03]} 76. Ke5 {[%emt 0:00:07]} Rd8 {[%emt 0:00:06]} 77. Rg3+ {[%emt 0:00:05]} Kh4 {[%emt 0:00:05]} 78. Rd3 {[%emt 0:00:04]} d4 {[%emt 0:00:44]} 79. Rxd4+ {[%emt 0:00:06]} Rxd4 {[%emt 0:00:03]} 80. Kxd4 {[%emt 0:05:06]} 1/2-1/2

[Event "36th Indian-ch U13 Open 2023"]
[Site "Secunderabad"]
[Date "2023.12.10"]
[Round "11.9"]
[White "Malvin Joshua"]
[Black "Sherla Prathamesh"]
[Result "1/2-1/2"]
[ECO "C03"]
[WhiteElo "1540"]
[BlackElo "1726"]
[Annotator "NA RC"]
[PlyCount "141"]
[EventDate "2023.12.04"]
[EventType "swiss"]
[EventCountry "IND"]
[SourceTitle "playchess.com"]
[Source "ChessBase"]
[SourceQuality "1"]
[TimeControl "5400+30"]

1. e4 {[%emt 0:00:03]} e6 {[%emt 0:00:13]} 2. d4 {[%emt 0:00:13]} d5 {[%emt 0:00:09]} 3. Nd2 {[%emt 0:00:27]} Be7 {[%emt 0:01:25]} 4. Ngf3 {[%emt 0:00:46]} Nf6 {[%emt 0:00:19]} 5. Bd3 {[%emt 0:00:46]} c5 {[%emt 0:00:42]} 6. exd5 {[%emt 0:06:46]} Nxd5 {[%emt 0:01:26]} 7. O-O {[%emt 0:00:31]} Nb4 {[%emt 0:10:09]} 8. Bb5+ {[%emt 0:02:12]} Bd7 {[%emt 0:02:02]} 9. Bxd7+ {[%emt 0:01:59]} Nxd7 {[%emt 0:01:05]} 10. Ne4 {[%emt 0:01:00]} cxd4 {[%emt 0:08:18]} 11. a3 {[%emt 0:01:43]} Nd5 {[%emt 0:03:44]} 12. Qxd4 {[%emt 0:07:37]} O-O {[%emt 0:05:06]} 13. c4 {[%emt 0:02:22]} N5f6 {[%emt 0:01:10]} 14. Rd1 {[%emt 0:08:54]} Nc5 {[%emt 0:14:57]} 15. Nxc5 {[%emt 0:02:41]} Bxc5 {[%emt 0:00:31]} 16. Qxd8 {[%emt 0:02:57]} Rfxd8 {[%emt 0:02:06]} 17. Rxd8+ {[%emt 0:01:17]} Rxd8 {[%emt 0:00:09]} 18. Bg5 {[%emt 0:00:04]} h6 {[%emt 0:05:08]} 19. Bxf6 {[%emt 0:00:47]} gxf6 {[%emt 0:00:03]} 20. Kf1 {[%emt 0:00:51]} e5 {[%emt 0:02:42]} 21. Ke2 {[%emt 0:00:15]} a5 {[%emt 0:05:46]} 22. b4 {[%emt 0:13:40]} axb4 {[%emt 0:03:34]} 23. axb4 {[%emt 0:00:32]} Bxb4 {[%emt 0:01:55]} 24. Rb1 {[%emt 0:00:42]} Bc3 {[%emt 0:12:31]} 25. Rb3 {[%emt 0:04:01]} Ba5 {[%emt 0:11:31]} 26. Rxb7 {[%emt 0:01:09]} f5 {[%emt 0:02:20]} 27. Rb5 {[%emt 0:04:38]} Bc7 {[%emt 0:01:10]} 28. Nh4 {[%emt 0:02:39]} Rd4 {[%emt 0:03:16]} 29. Nxf5 {[%emt 0:01:04]} Rxc4 {[%emt 0:00:07]} 30. Nxh6+ {[%emt 0:00:43]} Kg7 {[%emt 0:01:15]} 31. Nf5+ {[%emt 0:00:09]} Kg6 {[%emt 0:00:22]} 32. Ne3 {[%emt 0:00:16]} Ra4 {[%emt 0:00:07]} 33. Rc5 {[%emt 0:00:57]} Bb8 {[%emt 0:00:21]} 34. Rc8 {[%emt 0:01:09]} Ba7 {[%emt 0:00:44]} 35. Rg8+ {[%emt 0:00:33]} Kh7 {[%emt 0:00:18]} 36. Ra8 {[%emt 0:05:10]} e4 {[%emt 0:00:14]} 37. g3 {[%emt 0:01:00]} Ra1 {[%emt 0:00:46]} 38. Rc8 {[%emt 0:04:49]} Ra2+ {[%emt 0:00:49]} 39. Rc2 {[%emt 0:00:46]} Ra1 {[%emt 0:00:09]} 40. Nd1 {[%emt 0:03:56]} Kg6 {[%emt 0:00:50]} 41. Nc3 {[%emt 0:01:46]} Rh1 {[%emt 0:00:42]} 42. h4 {[%emt 0:02:16]} e3 {[%emt 0:00:18]} 43. fxe3 {[%emt 0:01:48]} Rh2+ {[%emt 0:00:02]} 44. Kd3 {[%emt 0:00:08]} Rxc2 {[%emt 0:00:06]} 45. Kxc2 {[%emt 0:00:04]} Bxe3 {[%emt 0:00:02]} 46. Kd3 {[%emt 0:00:35]} Bf2 {[%emt 0:00:13]} 47. Ne4 {[%emt 0:00:06]} Bb6 {[%emt 0:00:46]} 48. Ke2 {[%emt 0:00:49]} f5 {[%emt 0:00:29]} 49. Nc3 {[%emt 0:00:22]} Bc7 {[%emt 0:00:39]} 50. Kf3 {[%emt 0:00:05]} Bd6 {[%emt 0:00:31]} 51. Nd5 {[%emt 0:00:48]} Kh6 {[%emt 0:00:38]} 52. Nf4 {[%emt 0:00:14]} Bb8 {[%emt 0:00:20]} 53. Nd5 {[%emt 0:00:12]} Bd6 {[%emt 0:00:31]} 54. Ne3 {[%emt 0:00:16]} Kg6 {[%emt 0:00:09]} 55. Nc4 {[%emt 0:00:05]} Bc7 {[%emt 0:00:07]} 56. Ne3 {[%emt 0:00:05]} Bd6 {[%emt 0:00:15]} 57. Nd5 {[%emt 0:00:05]} Kh6 {[%emt 0:00:08]} 58. Kg2 {[%emt 0:00:16]} Kg6 {[%emt 0:00:18]} 59. Kf3 {[%emt 0:00:11]} Kh6 {[%emt 0:00:05]} 60. Ne3 {[%emt 0:00:06]} Kg6 {[%emt 0:00:05]} 61. Nc4 {[%emt 0:00:06]} Bc7 {[%emt 0:00:06]} 62. Ne3 {[%emt 0:00:04]} Bd6 {[%emt 0:00:09]} 63. Nd5 {[%emt 0:00:04]} Kh6 {[%emt 0:00:06]} 64. Nf4 {[%emt 0:00:03]} Bb8 {[%emt 0:00:09]} 65. Ke3 {[%emt 0:00:22]} Ba7+ {[%emt 0:00:01]} 66. Kf3 {[%emt 0:00:13]} Bb8 {[%emt 0:00:03]} 67. Nd5 {[%emt 0:00:12]} Bd6 {[%emt 0:00:08]} 68. Kg2 {[%emt 0:00:06]} Kg6 {[%emt 0:00:16]} 69. Kf3 {[%emt 0:00:03]} Kh6 {[%emt 0:00:07]} 70. Ne3 {[%emt 0:00:04]} Kg6 {[%emt 0:00:06]} 71. Nxf5 {[%emt 0:00:03]} 1/2-1/2

[Event "36th Indian-ch U13 Open 2023"]
[Site "Secunderabad"]
[Date "2023.12.10"]
[Round "11.10"]
[White "Gaikwad Manas"]
[Black "Aarav Saish Amonkar"]
[Result "1-0"]
[ECO "C54"]
[WhiteElo "1916"]
[BlackElo "1624"]
[Annotator "NA RC"]
[PlyCount "97"]
[EventDate "2023.12.04"]
[EventType "swiss"]
[EventCountry "IND"]
[SourceTitle "playchess.com"]
[Source "ChessBase"]
[SourceQuality "1"]
[TimeControl "5400+30"]

1. e4 {[%emt 0:00:09]} e5 {[%emt 0:00:08]} 2. Nf3 {[%emt 0:00:03]} Nc6 {[%emt 0:00:06]} 3. Bc4 {[%emt 0:00:04]} Nf6 {[%emt 0:00:08]} 4. d3 {[%emt 0:00:04]} Bc5 {[%emt 0:00:23]} 5. c3 {[%emt 0:00:05]} d6 {[%emt 0:00:07]} 6. a4 {[%emt 0:00:19]} a6 {[%emt 0:00:15]} 7. b4 {[%emt 0:00:10]} Ba7 {[%emt 0:00:10]} 8. Nbd2 {[%emt 0:00:05]} O-O {[%emt 0:01:17]} 9. O-O {[%emt 0:00:52]} Ne7 {[%emt 0:04:28]} 10. Re1 {[%emt 0:03:58]} Ng6 {[%emt 0:02:42]} 11. Nf1 {[%emt 0:01:17]} Be6 {[%emt 0:02:38]} 12. Bb3 {[%emt 0:05:10]} Nh5 {[%emt 0:04:33]} 13. d4 {[%emt 0:05:03]} Nhf4 {[%emt 0:07:34]} 14. Bc2 {[%emt 0:12:20]} Bg4 {[%emt 0:12:56]} 15. Bxf4 {[%emt 0:11:43]} Nxf4 {[%emt 0:03:50]} 16. h3 {[%emt 0:11:19]} Bxf3 {[%emt 0:08:29]} 17. Qxf3 {[%emt 0:00:09]} Qf6 {[%emt 0:01:05]} 18. Ne3 {[%emt 0:00:54]} h5 {[%emt 0:10:17]} 19. Rad1 {[%emt 0:02:19]} Rad8 {[%emt 0:02:34]} 20. Kh2 {[%emt 0:00:45]} g6 {[%emt 0:03:32]} 21. d5 {[%emt 0:14:07]} Kg7 {[%emt 0:02:22]} 22. Nc4 {[%emt 0:02:07]} Rd7 {[%emt 0:11:44]} 23. Na5 {[%emt 0:03:58]} Bb6 {[%emt 0:05:29]} 24. Nb3 {[%emt 0:02:35]} Qh4 {[%emt 0:01:28]} 25. Rd2 {[%emt 0:02:07]} f5 {[%emt 0:01:07]} 26. Qg3 {[%emt 0:01:46]} Qf6 {[%emt 0:03:27]} 27. exf5 {[%emt 0:00:29]} Kh6 {[%emt 0:00:58]} 28. fxg6 {[%emt 0:01:48]} Nxg6 {[%emt 0:01:00]} 29. Qxg6+ {[%emt 0:01:07]} Qxg6 {[%emt 0:00:33]} 30. Bxg6 {[%emt 0:00:01]} Kxg6 {[%emt 0:00:51]} 31. f3 {[%emt 0:00:06]} Rf4 {[%emt 0:00:25]} 32. Rc2 {[%emt 0:00:46]} c6 {[%emt 0:01:11]} 33. dxc6 {[%emt 0:02:34]} bxc6 {[%emt 0:00:03]} 34. Nd2 {[%emt 0:00:07]} d5 {[%emt 0:02:03]} 35. Kh1 {[%emt 0:03:57]} e4 {[%emt 0:02:27]} 36. fxe4 {[%emt 0:01:46]} dxe4 {[%emt 0:00:08]} 37. Nxe4 {[%emt 0:00:44]} Rxe4 {[%emt 0:00:35]} 38. Rxe4 {[%emt 0:03:50]} Rd1+ {[%emt 0:00:10]} 39. Kh2 {[%emt 0:00:03]} Bg1+ {[%emt 0:00:07]} 40. Kg3 {[%emt 0:00:04]} Rd3+ {[%emt 0:00:11]} 41. Kh4 {[%emt 0:01:02]} Bh2 {[%emt 0:02:05]} 42. Re6+ {[%emt 0:00:23]} Kf5 {[%emt 0:00:05]} 43. Rxc6 {[%emt 0:00:27]} Bg3+ {[%emt 0:00:50]} 44. Kxh5 {[%emt 0:00:10]} Rd7 {[%emt 0:00:30]} 45. Rc5+ {[%emt 0:00:06]} Kf6 {[%emt 0:00:36]} 46. Kg4 {[%emt 0:00:07]} Rg7+ {[%emt 0:00:46]} 47. Kf3 {[%emt 0:00:04]} Bd6 {[%emt 0:00:09]} 48. Rc6 {[%emt 0:00:04]} Ke5 {[%emt 0:00:08]} 49. Rxa6 {[%emt 0:00:05]} 1-0